fUSD/lending_fUSD_20250525
["ID","MTS","AMOUNT","RATE_DAILY","PERIOD"]
[362314044,1748185847624,-420.0,0.00019983,2]
[362314046,1748185847633,-420.0,0.00019983,2]
[362314048,1748185847643,-159.4144381,0.00019983,2]
[362314050,1748185847652,-420.0,0.00019983,2]
[362314052,1748185847662,-420.0,0.00019983,2]
[362314054,1748185847671,-420.0,0.00019983,2]
[362314056,1748185847681,-420.0,0.00019983,2]
[362314058,1748185847691,-424.00522846,0.00019983,2]
[362314060,1748185847701,-420.0,0.00019983,2]
[362314062,1748185847710,-420.0,0.00019983,2]
[362314064,1748185847720,-420.0,0.00019983,2]
[362314066,1748185847729,-420.0,0.00019983,2]
[362314068,1748185847739,-430.43984828,0.00019983,2]
[362314070,1748185847748,-420.0,0.00019983,2]
[362314072,1748185847758,-420.0,0.00019983,2]
[362314074,1748185847768,-437.81174001,0.00019983,2]
[362314076,1748185847778,-420.0,0.00019983,2]
[362314078,1748185847787,-440.33417969,0.00019983,2]
[362314080,1748185847797,-426.78511727,0.00019983,2]
[362314082,1748185847806,-420.0,0.00019983,2]
[362314084,1748185847816,-420.0,0.00019983,2]
[362314086,1748185847826,-449.86991429,0.00019983,2]
[362314088,1748185847837,-420.0,0.00019983,2]
[362314090,1748185847847,-420.0,0.00019983,2]
[362314092,1748185847856,-420.0,0.00019983,2]
[362314094,1748185847866,-377.37310573,0.00019983,2]
[362314096,1748185847875,-481.69029412,0.00019983,2]
[362314098,1748185847886,-420.0,0.00019983,2]
[362314100,1748185847895,-261.47785605,0.00019983,2]
[362314101,1748185847905,-420.0,0.00019983,2]
[362314104,1748185847915,-420.0,0.00019983,2]
[362314106,1748185847924,-426.148939,0.00019983,2]
[362314108,1748185847934,-150.0,0.00019987,2]
[362314109,1748185847944,-224.80764521,0.00019989,2]
[362314112,1748185847954,-224.80764521,0.0001999,2]
[362314114,1748185847963,-224.80764521,0.0001999,2]
[362314116,1748185847976,-261.302275,0.00019994,2]
[362314118,1748185847986,-420.0,0.00019994,2]
[362314120,1748185847995,-420.0,0.00019995,2]
[362314122,1748185848005,-209.71192125,0.00019995,2]
[362314124,1748185848014,-488.70599512,0.00019995,2]
[362314126,1748185848024,-420.0,0.00019995,2]
[362314127,1748185848033,-438.63360775,0.00019995,2]
[362314129,1748185848043,-438.78801075,0.00019995,2]
[362314132,1748185848053,-420.0,0.00019995,2]
[362314134,1748185848064,-150.0,0.00019995,2]
[362314136,1748185848074,-434.84721071,0.00019995,2]
[362314138,1748185848083,-435.68314988,0.00019995,2]
[362314140,1748185848093,-437.26462,0.00019995,2]
[362314142,1748185848102,-432.29479473,0.00019995,2]
[362314144,1748185848112,-433.93639543,0.00019995,2]
[362314146,1748185848122,-449.92267679,0.00019995,2]
[362314147,1748185848131,-400.96916079,0.00019995,2]
[362314150,1748185848141,-427.24182754,0.00019995,2]
[362314152,1748185848150,-425.25061802,0.00019995,2]
[362314154,1748185848160,-173.03375349,0.00019995,2]
[362314155,1748185848170,-420.0,0.00019995,2]
[362314157,1748185848179,-420.0,0.00019995,2]
[362314159,1748185848191,-508.00724753,0.00019995,2]
[362314162,1748185848200,-426.38436732,0.00019995,2]
[362314164,1748185848210,-420.0,0.00019995,2]
[362314165,1748185848219,-429.94031214,0.00019995,2]
[362314167,1748185848228,-425.87187666,0.00019995,2]
[362314169,1748185848238,-420.0,0.00019995,2]
[362314171,1748185848247,-420.0,0.00019995,2]
[362314173,1748185848258,-420.0,0.00019995,2]
[362314175,1748185848268,-420.0,0.00019995,2]
[362314177,1748185848277,-427.93071445,0.00019995,2]
[362314179,1748185848286,-420.0,0.00019995,2]
[362314187,1748185848347,-316.93835851,0.00019995,2]
[362314189,1748185848357,-420.0,0.00019995,2]
[362314191,1748185848366,-420.0,0.00019995,2]
[362314193,1748185848379,-420.0,0.00019995,2]
[362314195,1748185848388,-527.27285125,0.00019995,2]
[362314197,1748185848397,-372.88393607,0.00019995,2]
[362314199,1748185848406,-420.0,0.00019995,2]
[362314201,1748185848416,-259.21,0.00019995,2]
[362314203,1748185848425,-444.47453624,0.00019995,2]
[362314205,1748185848434,-195.04,0.00019995,2]
[362314206,1748185848445,-420.0,0.00019995,2]
[362314208,1748185848454,-471.184771,0.00019995,2]
[362314210,1748185848464,-338.76303718,0.00019995,2]
[362314212,1748185848473,-447.5481521,0.00019995,2]
[362314214,1748185848483,-420.0,0.00019995,2]
[362314216,1748185848492,-420.0,0.00019995,2]
[362314218,1748185848502,-420.0,0.00019995,2]
[362314220,1748185848511,-434.0558562,0.00019995,2]
[362314222,1748185848521,-238.36248599,0.00019995,2]
[362314224,1748185848531,-420.0,0.00019995,2]
[362314226,1748185848540,-420.0,0.00019995,2]
[362314228,1748185848550,-420.0,0.00019995,2]
[362314230,1748185848559,-420.0,0.00019995,2]
[362314232,1748185848569,-451.39949907,0.00019995,2]
[362314234,1748185848578,-420.0,0.00019995,2]
[362314236,1748185848587,-420.0,0.00019995,2]
[362314238,1748185848597,-500.0,0.00019995,2]
[362314240,1748185848607,-420.0,0.00019995,2]
[362314242,1748185848616,-184.83793239,0.00019995,2]
[362314244,1748185848625,-420.0,0.00019995,2]
[362314246,1748185848635,-420.0,0.00019995,2]
[362314248,1748185848645,-436.04567973,0.00019995,2]
[362314250,1748185848655,-432.52124467,0.00019995,2]
[362314252,1748185848664,-441.7250122,0.00019995,2]
[362314254,1748185848673,-420.0,0.00019995,2]
[362314256,1748185848683,-246.01,0.00019995,2]
[362314258,1748185848694,-420.0,0.00019995,2]
[362314260,1748185848704,-420.0,0.00019995,2]
[362314262,1748185848714,-420.0,0.00019995,2]
[362314264,1748185848724,-420.0,0.00019995,2]
[362314266,1748185848733,-420.0,0.00019995,2]
[362314268,1748185848744,-260.87890683,0.00019995,2]
[362314270,1748185848753,-353.33167967,0.00019995,2]
[362314272,1748185848762,-420.0,0.00019995,2]
[362314274,1748185848772,-331.62062,0.00019995,2]
[362314276,1748185848783,-420.0,0.00019995,2]
[362314278,1748185848793,-420.0,0.00019995,2]
[362314280,1748185848802,-420.0,0.00019995,2]
[362314282,1748185848811,-469.6264669,0.00019995,2]
[362314284,1748185848820,-420.0,0.00019995,2]
[362314286,1748185848828,-519.29337194,0.00019995,2]
[362314288,1748185848838,-420.0,0.00019995,2]
[362314289,1748185848846,-420.0,0.00019995,2]
[362314291,1748185848855,-427.20171401,0.00019995,2]
[362314293,1748185848865,-420.0,0.00019995,2]
[362314295,1748185848874,-420.0,0.00019995,2]
[362314297,1748185848883,-420.0,0.00019995,2]
[362314299,1748185848893,-443.31074109,0.00019995,2]
[362314301,1748185848903,-420.0,0.00019995,2]
[362314303,1748185848913,-420.0,0.00019995,2]
[362314305,1748185848923,-434.05451573,0.00019995,2]
[362314307,1748185848933,-420.0,0.00019995,2]
[362314309,1748185848944,-438.78974662,0.00019995,2]
[362314311,1748185848954,-441.37985268,0.00019995,2]
[362314313,1748185848963,-420.0,0.00019995,2]
[362314315,1748185848973,-271.55074809,0.00019995,2]
[362314317,1748185848983,-420.0,0.00019995,2]
[362314319,1748185848993,-424.03974855,0.00019995,2]
[362314321,1748185849002,-420.0,0.00019995,2]
[362314323,1748185849011,-420.0,0.00019995,2]
[362314325,1748185849021,-420.0,0.00019995,2]
[362314327,1748185849030,-420.0,0.00019995,2]
[362314329,1748185849039,-420.0,0.00019995,2]
[362314331,1748185849048,-420.0,0.00019995,2]
[362314333,1748185849057,-420.0,0.00019995,2]
[362314335,1748185849067,-420.0696331,0.00019995,2]
[362314337,1748185849076,-420.0,0.00019995,2]
[362314338,1748185849085,-420.0,0.00019995,2]
[362314340,1748185849095,-435.4456672,0.00019995,2]
[362314342,1748185849105,-427.59437676,0.00019995,2]
[362314344,1748185849115,-430.3594666,0.00019995,2]
[362314346,1748185849124,-420.0,0.00019995,2]
[362314348,1748185849134,-420.0,0.00019995,2]
[362314350,1748185849143,-420.0,0.00019995,2]
[362314352,1748185849152,-420.0,0.00019995,2]
[362314354,1748185849161,-438.90785346,0.00019995,2]
[362314356,1748185849170,-420.0,0.00019995,2]
[362314358,1748185849180,-420.0,0.00019995,2]
[362314360,1748185849190,-420.0,0.00019995,2]
[362314362,1748185849199,-420.0,0.00019995,2]
[362314364,1748185849209,-440.59852077,0.00019995,2]
[362314366,1748185849218,-257.5671593,0.00019995,2]
[362314368,1748185849227,-420.0,0.00019995,2]
[362314370,1748185849237,-442.53359431,0.00019995,2]
[362314372,1748185849246,-420.0,0.00019995,2]
[362314374,1748185849255,-420.0,0.00019995,2]
[362314376,1748185849264,-420.0,0.00019995,2]
[362314378,1748185849273,-420.0,0.00019995,2]
[362314380,1748185849282,-420.0,0.00019995,2]
[362314382,1748185849292,-420.0,0.00019995,2]
[362314384,1748185849301,-420.0,0.00019995,2]
[362314386,1748185849310,-1146.8,0.00019995,2]
[362314388,1748185849319,-177.88228256,0.00019995,2]
[362314390,1748185849329,-469.48655194,0.00019995,2]
[362314392,1748185849337,-296.08888121,0.00019995,2]
[362314393,1748185849346,-432.80267927,0.00019995,2]
[362314395,1748185849356,-420.0,0.00019995,2]
[362314398,1748185849365,-554.54,0.00019995,2]
[362314399,1748185849377,-420.0,0.00019995,2]
[362314401,1748185849387,-293.92896784,0.00019995,2]
[362314403,1748185849396,-420.0,0.00019995,2]
[362314405,1748185849405,-420.0,0.00019995,2]
[362314407,1748185849415,-420.0,0.00019995,2]
[362314409,1748185849425,-420.0,0.00019995,2]
[362314411,1748185849435,-420.0,0.00019995,2]
[362314413,1748185849444,-420.0,0.00019995,2]
[362314415,1748185849456,-420.0,0.00019995,2]
[362314417,1748185849466,-420.0,0.00019995,2]
[362314420,1748185849475,-420.0,0.00019995,2]
[362314421,1748185849485,-420.0,0.00019995,2]
[362314423,1748185849494,-420.0,0.00019995,2]
[362314425,1748185849503,-420.0,0.00019995,2]
[362314427,1748185849512,-420.0,0.00019995,2]
[362314429,1748185849522,-420.0,0.00019995,2]
[362314431,1748185849531,-420.0,0.00019995,2]
[362314433,1748185849540,-420.0,0.00019995,2]
[362314435,1748185849550,-561.31805234,0.00019995,2]
[362314437,1748185849559,-420.0,0.00019995,2]
[362314439,1748185849568,-420.0,0.00019995,2]
[362314441,1748185849578,-420.0,0.00019995,2]
[362314443,1748185849588,-543.47845028,0.00019995,2]
[362314445,1748185849598,-310.0656755,0.00019995,2]
[362314447,1748185849611,-420.0,0.00019995,2]
[362314449,1748185849620,-420.0,0.00019995,2]
[362314451,1748185849630,-420.0,0.00019995,2]
[362314453,1748185849641,-420.0,0.00019995,2]
[362314455,1748185849650,-420.0,0.00019995,2]
[362314457,1748185849661,-333.84050053,0.00019995,2]
[362314459,1748185849670,-420.0,0.00019995,2]
[362314461,1748185849680,-430.20740224,0.00019995,2]
[362314463,1748185849690,-779.5,0.00019995,2]
[362314465,1748185849699,-532.11802779,0.00019995,2]
[362314467,1748185849709,-444.49194438,0.00019995,2]
[362314469,1748185849719,-432.81927525,0.00019995,2]
[362314471,1748185849729,-315.03866044,0.00019995,2]
[362314473,1748185849739,-420.0,0.00019995,2]
[362314475,1748185849749,-420.0,0.00019995,2]
[362314477,1748185849760,-547.73,0.00019995,2]
[362314479,1748185849770,-420.0,0.00019995,2]
[362314481,1748185849779,-420.0,0.00019995,2]
[362314483,1748185849789,-420.0,0.00019995,2]
[362314485,1748185849798,-420.0,0.00019995,2]
[362314487,1748185849808,-420.0,0.00019995,2]
[362314489,1748185849817,-420.58508541,0.00019995,2]
[362314491,1748185849827,-225.15797771,0.00019995,2]
[362314493,1748185849837,-420.0,0.00019995,2]
[362314495,1748185849846,-420.0,0.00019995,2]
[362314497,1748185849856,-420.0,0.00019995,2]
[362314499,1748185849865,-420.0,0.00019995,2]
[362314501,1748185849875,-420.0,0.00019995,2]
[362314503,1748185849885,-420.0,0.00019995,2]
[362314505,1748185849895,-420.0,0.00019995,2]
[362314507,1748185849905,-420.0,0.00019995,2]
[362314509,1748185849915,-420.0,0.00019995,2]
[362314511,1748185849925,-428.98030329,0.00019995,2]
[362314514,1748185849935,-431.43567538,0.00019995,2]
[362314515,1748185849944,-555.01240878,0.00019995,2]
[362314518,1748185849954,-420.0,0.00019995,2]
[362314519,1748185849964,-420.0,0.00019995,2]
[362314521,1748185849975,-420.0,0.00019995,2]
[362314523,1748185849984,-420.0,0.00019995,2]
[362314525,1748185849994,-420.0,0.00019995,2]
[362314528,1748185850004,-420.0,0.00019995,2]
[362314530,1748185850013,-420.0,0.00019995,2]
[362314532,1748185850023,-420.0,0.00019995,2]
[362314534,1748185850033,-420.0,0.00019995,2]
[362314536,1748185850042,-420.0,0.00019995,2]
[362314538,1748185850052,-420.0,0.00019995,2]
[362314540,1748185850061,-235.05205804,0.00019995,2]
[362314542,1748185850071,-420.0,0.00019995,2]
[362314544,1748185850080,-420.0,0.00019995,2]
[362314545,1748185850090,-420.0,0.00019995,2]
[362314548,1748185850100,-269.468569,0.00019995,2]
[362314550,1748185850110,-420.0,0.00019995,2]
[362314551,1748185850119,-420.0,0.00019995,2]
[362314553,1748185850128,-278.3855722,0.00019995,2]
[362314555,1748185850138,-420.0,0.00019995,2]
[362314557,1748185850147,-420.0,0.00019995,2]
[362314559,1748185850157,-420.0,0.00019995,2]
[362314561,1748185850166,-420.0,0.00019995,2]
[362314563,1748185850175,-153912.1341376,0.00019996,2]
[362314565,1748185850185,-13581.0084107,0.00019996,2]
[362314567,1748185850195,-3872.9478592,0.00019996,2]
[362314569,1748185850205,-3002.1402736,0.00019996,2]
[362314571,1748185850214,-782.688,0.00019997,2]
[362314573,1748185850224,-499.99,0.00019998,2]
[362314575,1748185850234,-420.0,0.00019998,2]
[362314577,1748185850244,-290.32305822,0.00019998,2]
[362314579,1748185850253,-420.0,0.00019998,2]
[362314581,1748185850263,-284.29636169,0.00019998,2]
[362314583,1748185850273,-420.0,0.00019998,2]
[362314585,1748185850282,-420.0,0.00019998,2]
[362314587,1748185850292,-407.06,0.00019998,2]
[362314589,1748185850301,-420.0,0.00019998,2]
[362314591,1748185850311,-471.90918214,0.00019998,2]
[362314593,1748185850321,-420.0,0.00019998,2]
[362314595,1748185850330,-420.0,0.00019998,2]
[362314597,1748185850340,-420.0,0.00019998,2]
[362314599,1748185850349,-420.0,0.00019998,2]
[362314601,1748185850359,-420.0,0.00019998,2]
[362314602,1748185850368,-420.0,0.00019998,2]
[362314603,1748185850382,-420.0,0.00019998,2]
[362314604,1748185850391,-420.0,0.00019998,2]
[362314605,1748185850401,-500.0,0.00019998,2]
[362314606,1748185850411,-500.0,0.00019998,2]
[362314607,1748185850421,-420.0,0.00019998,2]
[362314608,1748185850431,-420.0,0.00019998,2]
[362314609,1748185850441,-420.0,0.00019998,2]
[362314610,1748185850451,-322.1940437,0.00019998,2]
[362314611,1748185850461,-420.0,0.00019998,2]
[362314612,1748185850471,-420.0,0.00019998,2]
[362314613,1748185850481,-331.62062,0.00019998,2]
[362314614,1748185850490,-420.0,0.00019998,2]
[362314615,1748185850501,-321.35165344,0.00019998,2]
[362314617,1748185850510,-420.0,0.00019998,2]
[362314619,1748185850520,-500.0,0.00019998,2]
[362314621,1748185850529,-420.0,0.00019998,2]
[362314623,1748185850539,-523.31966433,0.00019998,2]
[362314625,1748185850549,-420.0,0.00019998,2]
[362314627,1748185850559,-420.0,0.00019998,2]
[362314629,1748185850568,-271.32539577,0.00019998,2]
[362314631,1748185850578,-505.27614015,0.00019998,2]
[362314633,1748185850588,-420.0,0.00019998,2]
[362314635,1748185850598,-420.0,0.00019998,2]
[362314637,1748185850607,-420.0,0.00019998,2]
[362314639,1748185850617,-212.97177818,0.00019998,2]
[362314641,1748185850627,-420.0,0.00019998,2]
[362314643,1748185850636,-420.0,0.00019998,2]
[362314645,1748185850645,-420.0,0.00019998,2]
[362314647,1748185850655,-505.15745971,0.00019998,2]
[362314649,1748185850664,-420.0,0.00019998,2]
[362314651,1748185850674,-420.0,0.00019998,2]
[362314653,1748185850683,-420.0,0.00019998,2]
[362314655,1748185850695,-206.0914901,0.00019998,2]
[362314657,1748185850705,-420.0,0.00019998,2]
[362314659,1748185850715,-420.0,0.00019998,2]
[362314661,1748185850727,-456.4386329,0.00019998,2]
[362314663,1748185850736,-420.0,0.00019998,2]
[362314665,1748185850746,-420.0,0.00019998,2]
[362314667,1748185850755,-481.8067394,0.00019998,2]
[362314669,1748185850765,-440.38502486,0.00019998,2]
[362314671,1748185850775,-420.0,0.00019998,2]
[362314673,1748185850785,-420.0,0.00019998,2]
[362314675,1748185850794,-420.0,0.00019998,2]
[362314677,1748185850804,-508.48792638,0.00019998,2]
[362314679,1748185850814,-420.0,0.00019998,2]
[362314681,1748185850824,-420.0,0.00019998,2]
[362314683,1748185850834,-420.0,0.00019998,2]
[362314685,1748185850844,-420.0,0.00019998,2]
[362314687,1748185850854,-463.46845306,0.00019998,2]
[362314689,1748185850864,-420.0,0.00019998,2]
[362314691,1748185850874,-456.77988898,0.00019998,2]
[362314693,1748185850883,-436.89352348,0.00019998,2]
[362314695,1748185850894,-1146.8,0.00019998,2]
[362314696,1748185850903,-1146.8,0.00019998,2]
[362314697,1748185850913,-420.0,0.00019998,2]
[362314698,1748185850923,-458.48,0.00019998,2]
[362314699,1748185850932,-420.0,0.00019998,2]
[362314700,1748185850945,-516.24625293,0.00019998,2]
[362314701,1748185850956,-420.0,0.00019998,2]
[362314702,1748185850965,-420.0,0.00019998,2]
[362314703,1748185850976,-420.0,0.00019998,2]
[362314704,1748185850986,-420.0,0.00019998,2]
[362314705,1748185850995,-420.0,0.00019998,2]
[362314706,1748185851005,-420.0,0.00019998,2]
[362314707,1748185851015,-420.0,0.00019998,2]
[362314708,1748185851024,-420.0,0.00019998,2]
[362314709,1748185851034,-451.96,0.00019998,2]
[362314710,1748185851044,-420.0,0.00019998,2]
[362314711,1748185851053,-420.0,0.00019998,2]
[362314712,1748185851063,-239.76307217,0.00019998,2]
[362314713,1748185851073,-420.0,0.00019998,2]
[362314715,1748185851083,-420.0,0.00019998,2]
[362314717,1748185851092,-420.0,0.00019998,2]
[362314719,1748185851102,-420.0,0.00019998,2]
[362314721,1748185851112,-420.0,0.00019998,2]
[362314723,1748185851121,-420.0,0.00019998,2]
[362314724,1748185851132,-420.0,0.00019998,2]
[362314725,1748185851142,-420.0,0.00019998,2]
[362314726,1748185851152,-420.0,0.00019998,2]
[362314728,1748185851161,-420.0,0.00019998,2]
[362314730,1748185851171,-499.8713626,0.00019998,2]
[362314732,1748185851181,-420.0,0.00019998,2]
[362314733,1748185851192,-420.0,0.00019998,2]
[362314734,1748185851202,-420.0,0.00019998,2]
[362314735,1748185851212,-420.0,0.00019998,2]
[362314736,1748185851222,-420.0,0.00019998,2]
[362314737,1748185851231,-392.69,0.00019998,2]
[362314738,1748185851241,-420.0,0.00019998,2]
[362314739,1748185851250,-779.5,0.00019998,2]
[362314740,1748185851260,-779.5,0.00019998,2]
[362314741,1748185851269,-420.0,0.00019998,2]
[362314742,1748185851279,-239.10671705,0.00019998,2]
[362314743,1748185851289,-420.0,0.00019998,2]
[362314744,1748185851298,-420.0,0.00019998,2]
[362314745,1748185851308,-420.0,0.00019998,2]
[362314746,1748185851317,-420.0,0.00019998,2]
[362314747,1748185851327,-342.15,0.00019998,2]
[362314748,1748185851337,-420.0,0.00019998,2]
[362314749,1748185851346,-420.0,0.00019998,2]
[362314750,1748185851356,-420.0,0.00019998,2]
[362314751,1748185851367,-462.18,0.00019998,2]
[362314752,1748185851382,-420.0,0.00019998,2]
[362314753,1748185851391,-521.26,0.00019998,2]
[362314754,1748185851401,-420.0,0.00019998,2]
[362314755,1748185851411,-420.0,0.00019998,2]
[362314756,1748185851421,-420.0,0.00019998,2]
[362314757,1748185851431,-420.0,0.00019998,2]
[362314758,1748185851443,-569.926542,0.00019998,2]
[362314759,1748185851452,-420.0,0.00019998,2]
[362314760,1748185851462,-420.0,0.00019998,2]
[362314761,1748185851471,-420.0,0.00019998,2]
[362314762,1748185851481,-470.41,0.00019998,2]
[362314763,1748185851491,-420.0,0.00019998,2]
[362314764,1748185851501,-420.0,0.00019998,2]
[362314765,1748185851511,-420.0,0.00019998,2]
[362314766,1748185851520,-383.42,0.00019998,2]
[362314767,1748185851530,-420.0,0.00019998,2]
[362314768,1748185851540,-420.0,0.00019998,2]
[362314769,1748185851550,-420.0,0.00019998,2]
[362314770,1748185851561,-420.0,0.00019998,2]
[362314771,1748185851571,-420.0,0.00019998,2]
[362314772,1748185851582,-420.0,0.00019998,2]
[362314773,1748185851592,-420.0,0.00019998,2]
[362314774,1748185851603,-370.19053315,0.00019998,2]
[362314775,1748185851614,-420.0,0.00019998,2]
[362314776,1748185851623,-420.0,0.00019998,2]
[362314777,1748185851633,-541.40274578,0.00019998,2]
[362314778,1748185851643,-269.468569,0.00019998,2]
[362314779,1748185851652,-420.0,0.00019998,2]
[362314780,1748185851662,-420.0,0.00019998,2]
[362314781,1748185851672,-420.0,0.00019998,2]
[362314782,1748185851682,-420.0,0.00019998,2]
[362314783,1748185851692,-420.0,0.00019998,2]
[362314784,1748185851701,-420.0,0.00019998,2]
[362314785,1748185851711,-20000.0,0.00019998,2]
[362314786,1748185851721,-673.01159983,0.00019999,2]
[362314787,1748185851731,-420.0,0.00019999,2]
[362314788,1748185851740,-420.0,0.00019999,2]
[362314789,1748185851750,-420.0,0.00019999,2]
[362314790,1748185851760,-150.0,0.00019999,2]
[362314791,1748185851770,-420.0,0.00019999,2]
[362314792,1748185851781,-420.0,0.00019999,2]
[362314793,1748185851791,-179.94035228,0.00019999,2]
[362314794,1748185851801,-441.61180399,0.00019999,2]
[362314795,1748185851812,-431.32079306,0.00019999,2]
[362314796,1748185851822,-419.91453176,0.00019999,2]
[362314797,1748185851832,-427.07573219,0.00019999,2]
[362314798,1748185851842,-456.70318383,0.00019999,2]
[362314799,1748185851852,-426.83209444,0.00019999,2]
[362314800,1748185851862,-424.26586412,0.00019999,2]
[362314801,1748185851872,-430.62884639,0.00019999,2]
[362314802,1748185851882,-500.0,0.00019999,2]
[362314803,1748185851893,-500.0,0.00019999,2]
[362314804,1748185851903,-500.0,0.00019999,2]
[362314805,1748185851914,-500.0,0.00019999,2]
[362314806,1748185851924,-500.0,0.00019999,2]
[362314807,1748185851934,-420.0,0.00019999,2]
[362314808,1748185851946,-427.30079503,0.00019999,2]
[362314809,1748185851957,-420.0,0.00019999,2]
[362314810,1748185851966,-420.0,0.00019999,2]
[362314811,1748185851976,-447.02565083,0.00019999,2]
[362314812,1748185851988,-420.0,0.00019999,2]
[362314813,1748185851999,-420.0,0.00019999,2]
[362314814,1748185852009,-420.0,0.00019999,2]
[362314815,1748185852020,-440.31182565,0.00019999,2]
[362314816,1748185852031,-420.0,0.00019999,2]
[362314817,1748185852044,-420.0,0.00019999,2]
[362314818,1748185852054,-431.64563872,0.00019999,2]
[362314819,1748185852063,-420.0,0.00019999,2]
[362314820,1748185852074,-420.0,0.00019999,2]
[362314821,1748185852084,-420.0,0.00019999,2]
[362314822,1748185852093,-342.11850245,0.00019999,2]
[362314823,1748185852103,-506.1538179,0.00019999,2]
[362314824,1748185852113,-420.0,0.00019999,2]
[362314825,1748185852123,-429.83606658,0.00019999,2]
[362314826,1748185852133,-420.0,0.00019999,2]
[362314827,1748185852143,-438.78518821,0.00019999,2]
[362314828,1748185852152,-420.0,0.00019999,2]
[362314829,1748185852162,-440.42899181,0.00019999,2]
[362314830,1748185852172,-420.0,0.00019999,2]
[362314831,1748185852183,-420.0,0.00019999,2]
[362314832,1748185852194,-420.0,0.00019999,2]
[362314833,1748185852204,-428.84840305,0.00019999,2]
[362314834,1748185852373,-420.0,0.00019999,2]
[362314835,1748185852384,-435.28015766,0.00019999,2]
[362314836,1748185852394,-420.0,0.00019999,2]
[362314837,1748185852403,-422.05055486,0.00019999,2]
[362314838,1748185852413,-420.0,0.00019999,2]
[362314839,1748185852422,-435.08444034,0.00019999,2]
[362314840,1748185852431,-420.0,0.00019999,2]
[362314841,1748185852442,-420.0,0.00019999,2]
[362314842,1748185852452,-431.94867979,0.00019999,2]
[362314843,1748185852462,-420.0,0.00019999,2]
[362314844,1748185852471,-420.0,0.00019999,2]
[362314845,1748185852480,-429.66479471,0.00019999,2]
[362314846,1748185852490,-420.0,0.00019999,2]
[362314847,1748185852499,-423.66605262,0.00019999,2]
[362314848,1748185852507,-420.0,0.00019999,2]
[362314849,1748185852517,-444.27960093,0.00019999,2]
[362314850,1748185852526,-420.0,0.00019999,2]
[362314851,1748185852535,-539.20049086,0.00019999,2]
[362314852,1748185852544,-420.0,0.00019999,2]
[362314853,1748185852554,-420.0,0.00019999,2]
[362314854,1748185852563,-420.0,0.00019999,2]
[362314855,1748185852572,-427.5549772,0.00019999,2]
[362314856,1748185852581,-425.98844371,0.00019999,2]
[362314857,1748185852591,-422.7499065,0.00019999,2]
[362314858,1748185852600,-423.24395329,0.00019999,2]
[362314859,1748185852609,-430.38041885,0.00019999,2]
[362314860,1748185852619,-420.0,0.00019999,2]
[362314861,1748185852628,-420.0,0.00019999,2]
[362314862,1748185852637,-157.0516084,0.00019999,2]
[362314863,1748185852646,-420.0,0.00019999,2]
[362314864,1748185852655,-420.0,0.00019999,2]
[362314865,1748185852665,-420.0,0.00019999,2]
[362314866,1748185852674,-329.22864338,0.00019999,2]
[362314867,1748185852683,-452.76838944,0.00019999,2]
[362314868,1748185852695,-420.0,0.00019999,2]
[362314869,1748185852704,-420.0,0.00019999,2]
[362314870,1748185852713,-440.88843868,0.00019999,2]